[Event "IV Pullman Blitz 2022"]
[Site "Riga, Latvia"]
[Date "2022.02.20"]
[Round "4.2"]
[White "Gorozhankina, Julia"]
[Black "Golubovskis, Maksims"]
[Result "1/2-1/2"]
[TimeControl "180+2"]
[WhiteTitle "WFM"]
[BlackTitle "FM"]
[WhiteElo "2033"]
[BlackElo "2066"]

1. e4 {[%clk 00:03:03]} c5 {[%clk 00:03:03]} 2. Nf3 {[%clk 00:03:04]} {[%emt
00:00:01]} Nc6 {[%clk 00:03:04]} {[%emt 00:00:01]} 3. Bb5 {[%clk 00:03:05]}
{[%emt 00:00:01]} g6 {[%clk 00:03:06]} 4. O-O {[%clk 00:03:02]} {[%emt
00:00:05]} Bg7 {[%clk 00:03:07]} 5. Re1 {[%clk 00:03:02]} {[%emt 00:00:02]} Nf6
{[%clk 00:03:00]} {[%emt 00:00:08]} 6. c3 {[%clk 00:02:52]} {[%emt 00:00:13]}
O-O {[%clk 00:02:57]} {[%emt 00:00:06]} 7. h3 {[%clk 00:02:38]} {[%emt
00:00:15]} a6 {[%clk 00:02:45]} {[%emt 00:00:14]} 8. Bf1 {[%clk 00:02:28]}
{[%emt 00:00:12]} e5 {[%clk 00:02:35]} {[%emt 00:00:13]} 9. Na3 {[%clk
00:01:58]} {[%emt 00:00:32]} d5 {[%clk 00:02:30]} {[%emt 00:00:06]} 10. exd5
{[%clk 00:01:55]} {[%emt 00:00:05]} Nxd5 {[%clk 00:02:31]} 11. d3 {[%clk
00:01:36]} {[%emt 00:00:22]} Re8 {[%clk 00:02:29]} {[%emt 00:00:04]} 12. Nc2
{[%clk 00:01:26]} {[%emt 00:00:12]} h6 {[%clk 00:02:27]} {[%emt 00:00:04]} 13.
a4 {[%clk 00:01:13]} {[%emt 00:00:16]} Bf5 {[%clk 00:01:51]} {[%emt 00:00:38]}
14. Ne3 {[%clk 00:01:03]} {[%emt 00:00:12]} Nxe3 {[%clk 00:01:52]} {[%emt
00:00:01]} 15. Bxe3 {[%clk 00:01:03]} {[%emt 00:00:02]} b6 {[%clk 00:01:53]} 16.
Qd2 {[%clk 00:00:28]} {[%emt 00:00:37]} e4 {[%clk 00:01:40]} {[%emt 00:00:14]}
17. dxe4 {[%clk 00:00:23]} {[%emt 00:00:08]} Bxe4 {[%clk 00:01:14]} {[%emt
00:00:29]} 18. Qxd8 {[%clk 00:00:23]} {[%emt 00:00:02]} Rexd8 {[%clk 00:01:05]}
{[%emt 00:00:11]} 19. Nd2 {[%clk 00:00:20]} {[%emt 00:00:05]} Bf5 {[%clk
00:01:00]} {[%emt 00:00:07]} 20. Nc4 {[%clk 00:00:15]} {[%emt 00:00:07]} Rab8
{[%clk 00:00:45]} {[%emt 00:00:17]} 21. Be2 {[%clk 00:00:09]} {[%emt 00:00:08]}
Bc2 {[%clk 00:00:36]} {[%emt 00:00:11]} 22. a5 {[%clk 00:00:08]} {[%emt
00:00:03]} b5 {[%clk 00:00:26]} {[%emt 00:00:11]} 23. Nd2 {[%clk 00:00:09]}
{[%emt 00:00:02]} c4 {[%clk 00:00:26]} {[%emt 00:00:03]} 24. Nf3 {[%clk
00:00:09]} {[%emt 00:00:02]} g5 {[%clk 00:00:16]} {[%emt 00:00:11]} 25. Bb6
{[%clk 00:00:10]} {[%emt 00:00:01]} Rd7 {[%clk 00:00:16]} {[%emt 00:00:02]} 26.
Bd1 {[%clk 00:00:10]} {[%emt 00:00:01]} Bg6 {[%clk 00:00:16]} {[%emt 00:00:02]}
27. Be2 {[%clk 00:00:10]} {[%emt 00:00:02]} Re8 {[%clk 00:00:11]} {[%emt
00:00:07]} 28. Bf1 {[%clk 00:00:11]} Rc8 {[%clk 00:00:11]} {[%emt 00:00:01]} 29.
Rad1 {[%clk 00:00:12]} Bd3 {[%clk 00:00:09]} {[%emt 00:00:04]} 30. Rd2 {[%clk
00:00:10]} {[%emt 00:00:04]} Rd5 {[%clk 00:00:03]} {[%emt 00:00:08]} 31. Red1
{[%clk 00:00:11]} Re8 {[%clk 00:00:03]} {[%emt 00:00:03]} 32. Bxd3 {[%clk
00:00:12]} {[%emt 00:00:02]} cxd3 {[%clk 00:00:04]} 33. Rxd3 {[%clk 00:00:13]}
Rf5 {[%clk 00:00:04]} {[%emt 00:00:01]} 34. Rd6 {[%clk 00:00:13]} {[%emt
00:00:02]} Ne5 {[%clk 00:00:04]} {[%emt 00:00:03]} 35. Nxe5 {[%emt 00:00:04]}
Rfxe5 {[%clk 00:00:04]} {[%emt 00:00:01]} 36. Rd8 {[%clk 00:00:14]} Kh7 {[%clk
00:00:04]} {[%emt 00:00:01]} 37. Rxe8 {[%clk 00:00:15]} {[%emt 00:00:01]} Rxe8
{[%clk 00:00:03]} {[%emt 00:00:03]} 38. Rd7 {[%clk 00:00:16]} {[%emt 00:00:01]}
Kg6 {[%clk 00:00:05]} 39. Rd6+ {[%clk 00:00:17]} {[%emt 00:00:01]} Kf5 {[%clk
00:00:04]} {[%emt 00:00:02]} 40. g3 {[%clk 00:00:18]} {[%emt 00:00:01]} Re1+ 41.
Kg2 Re2 {[%clk 00:00:05]} {[%emt 00:00:01]} 42. Rd5+ {[%clk 00:00:21]} {[%emt
00:00:01]} Kg6 {[%clk 00:00:06]} 43. b4 {[%clk 00:00:21]} {[%emt 00:00:02]}
Bxc3 {[%clk 00:00:06]} {[%emt 00:00:02]} 44. Rd6+ {[%clk 00:00:22]} Kg7 {[%clk
00:00:07]} {[%emt 00:00:01]} 45. Bc5 {[%clk 00:00:23]} {[%emt 00:00:01]} Re4
{[%clk 00:00:07]} {[%emt 00:00:01]} 46. Rxa6 {[%clk 00:00:24]} {[%emt
00:00:02]} Bxb4 {[%clk 00:00:08]} {[%emt 00:00:01]} 47. Bxb4 {[%clk 00:00:24]}
{[%emt 00:00:02]} Rxb4 {[%clk 00:00:09]} 48. Rb6 {[%clk 00:00:25]} Rb2 {[%clk
00:00:09]} {[%emt 00:00:01]} 49. a6 {[%clk 00:00:26]} {[%emt 00:00:01]} 1/2-1/2

[Event "IV Pullman Blitz 2022"]
[Site "Riga, Latvia"]
[Date "2022.02.20"]
[Round "4.3"]
[White "Krustkalns, Kristaps"]
[Black "Berzinsh, Roland"]
[Result "0-1"]
[TimeControl "180+2"]
[WhiteTitle "FM"]
[BlackTitle "IM"]
[WhiteElo "1974"]
[BlackElo "2285"]

1. e4 {[%clk 00:03:01]} {[%emt 00:00:02]} c5 {[%clk 00:03:04]} 2. Nf3 {[%clk
00:03:01]} {[%emt 00:00:02]} b6 {[%clk 00:03:05]} 3. d4 {[%clk 00:03:02]}
{[%emt 00:00:02]} cxd4 {[%clk 00:03:07]} 4. Nxd4 {[%clk 00:03:03]} {[%emt
00:00:01]} Bb7 {[%clk 00:03:08]} 5. Nc3 {[%clk 00:03:02]} {[%emt 00:00:03]} a6
{[%clk 00:03:10]} 6. f4 {[%clk 00:02:56]} {[%emt 00:00:08]} d6 {[%clk
00:03:02]} {[%emt 00:00:10]} 7. Be3 {[%clk 00:02:56]} {[%emt 00:00:02]} Nd7
{[%clk 00:03:01]} {[%emt 00:00:03]} 8. Qf3 {[%clk 00:02:55]} {[%emt 00:00:01]}
Ngf6 {[%clk 00:02:58]} {[%emt 00:00:06]} 9. g4 {[%emt 00:00:05]} e5 {[%emt
00:00:01]} 10. Nf5 {[%clk 00:02:46]} {[%emt 00:00:07]} g6 {[%clk 00:02:58]}
{[%emt 00:00:04]} 11. Ng3 {[%clk 00:02:45]} {[%emt 00:00:02]} exf4 {[%clk
00:02:50]} {[%emt 00:00:10]} 12. Qxf4 {[%clk 00:02:40]} {[%emt 00:00:07]} Ne5
{[%clk 00:02:48]} {[%emt 00:00:05]} 13. g5 {[%clk 00:02:03]} {[%emt 00:00:38]}
Nfg4 {[%clk 00:02:49]} {[%emt 00:00:02]} 14. Bd4 {[%clk 00:02:03]} {[%emt
00:00:02]} h6 {[%clk 00:02:49]} {[%emt 00:00:03]} 15. h4 {[%clk 00:01:48]}
{[%emt 00:00:16]} hxg5 {[%clk 00:02:49]} {[%emt 00:00:02]} 16. hxg5 {[%clk
00:01:48]} {[%emt 00:00:01]} Rxh1 {[%clk 00:02:50]} {[%emt 00:00:02]} 17. Nxh1
{[%clk 00:01:49]} {[%emt 00:00:02]} Qxg5 {[%clk 00:02:48]} {[%emt 00:00:04]} 18.
Qxg5 {[%clk 00:00:52]} {[%emt 00:00:58]} Nf3+ {[%clk 00:02:49]} 19. Ke2 {[%clk
00:00:42]} {[%emt 00:00:13]} Nxg5 {[%clk 00:02:50]} {[%emt 00:00:01]} 20. Bxb6
{[%clk 00:00:43]} Nxe4 {[%clk 00:02:48]} {[%emt 00:00:04]} 21. Nxe4 {[%clk
00:00:18]} {[%emt 00:00:26]} Bxe4 {[%clk 00:02:49]} {[%emt 00:00:01]} 22. Bh3
{[%clk 00:00:18]} {[%emt 00:00:02]} Ne5 {[%clk 00:02:44]} {[%emt 00:00:08]} 23.
Bd4 {[%clk 00:00:06]} {[%emt 00:00:14]} f5 {[%clk 00:02:38]} {[%emt 00:00:08]}
24. c3 {[%clk 00:00:06]} {[%emt 00:00:01]} Rb8 {[%clk 00:02:38]} {[%emt
00:00:02]} 25. b4 {[%clk 00:00:06]} {[%emt 00:00:02]} Nf3 {[%clk 00:02:27]}
{[%emt 00:00:13]} 26. Nf2 {[%clk 00:00:03]} {[%emt 00:00:05]} Nxd4+ {[%clk
00:02:28]} {[%emt 00:00:01]} 27. cxd4 {[%clk 00:00:03]} {[%emt 00:00:02]} Rxb4
{[%clk 00:02:23]} {[%emt 00:00:07]} 28. Nxe4 {[%clk 00:00:03]} {[%emt
00:00:02]} fxe4 {[%clk 00:02:24]} {[%emt 00:00:01]} 29. Ke3 {[%clk 00:00:03]}
{[%emt 00:00:01]} d5 {[%clk 00:02:22]} {[%emt 00:00:05]} 30. Rc1 {[%clk
00:00:04]} Bh6+ {[%clk 00:02:23]} 0-1

[Event "IV Pullman Blitz 2022"]
[Site "Riga, Latvia"]
[Date "2022.02.20"]
[Round "4.4"]
[White "Mustaps, Matiss"]
[Black "Rychagov, Nikita"]
[Result "1-0"]
[TimeControl "180+2"]
[WhiteTitle "FM"]
[WhiteElo "2261"]
[BlackElo "1932"]

1. e4 {[%emt 00:08:30]} e5 2. Nf3 Nc6 3. Bb5 a6 {[%emt 00:00:01]} 4. Ba4 Nf6 5.
d3 b5 6. Bb3 Bc5 7. c3 {[%clk 00:03:02]} {[%emt 00:00:06]} O-O {[%clk
00:03:11]} {[%emt 00:00:03]} 8. O-O {[%clk 00:03:01]} {[%emt 00:00:03]} d5
{[%clk 00:03:12]} 9. Nbd2 {[%clk 00:02:51]} {[%emt 00:00:13]} Bb7 {[%clk
00:03:09]} {[%emt 00:00:05]} 10. h3 {[%clk 00:02:46]} {[%emt 00:00:07]} h6
{[%clk 00:03:02]} {[%emt 00:00:09]} 11. Re1 {[%clk 00:02:47]} {[%emt 00:00:01]}
Re8 {[%clk 00:03:03]} {[%emt 00:00:01]} 12. Bc2 {[%clk 00:02:33]} {[%emt
00:00:16]} Bf8 {[%clk 00:02:55]} {[%emt 00:00:11]} 13. Nf1 {[%clk 00:02:34]}
dxe4 {[%emt 00:00:08]} 14. dxe4 Na5 {[%clk 00:02:49]} {[%emt 00:00:01]} 15. Qe2
{[%clk 00:02:30]} {[%emt 00:00:07]} Nc4 {[%clk 00:02:38]} {[%emt 00:00:14]} 16.
Ng3 {[%clk 00:02:28]} {[%emt 00:00:03]} g6 {[%clk 00:02:31]} {[%emt 00:00:09]}
17. b3 {[%clk 00:02:20]} {[%emt 00:00:09]} Nd6 {[%clk 00:02:32]} {[%emt
00:00:02]} 18. Bb2 {[%clk 00:02:19]} {[%emt 00:00:03]} c5 {[%clk 00:02:30]}
{[%emt 00:00:03]} 19. c4 {[%clk 00:02:19]} {[%emt 00:00:03]} Qb6 {[%clk
00:02:21]} {[%emt 00:00:11]} 20. Nxe5 {[%clk 00:02:03]} {[%emt 00:00:17]} Bg7
{[%clk 00:02:15]} {[%emt 00:00:08]} 21. Rad1 {[%clk 00:01:57]} {[%emt
00:00:08]} h5 {[%clk 00:01:59]} {[%emt 00:00:18]} 22. h4 {[%clk 00:01:54]}
{[%emt 00:00:05]} Re6 {[%clk 00:01:55]} {[%emt 00:00:06]} 23. Ba1 {[%clk
00:01:19]} {[%emt 00:00:36]} Rae8 {[%clk 00:01:54]} {[%emt 00:00:03]} 24. f4
{[%clk 00:01:21]} Qc7 {[%clk 00:01:34]} {[%emt 00:00:22]} 25. Qf3 {[%clk
00:00:50]} {[%emt 00:00:32]} Ng4 {[%clk 00:01:27]} {[%emt 00:00:09]} 26. Nxg4
{[%clk 00:00:48]} {[%emt 00:00:04]} hxg4 {[%clk 00:01:28]} {[%emt 00:00:02]} 27.
Qxg4 {[%clk 00:00:38]} {[%emt 00:00:13]} Bxa1 {[%clk 00:01:29]} 28. Rxa1 {[%clk
00:00:38]} {[%emt 00:00:02]} Nxe4 {[%clk 00:01:29]} {[%emt 00:00:02]} 29. Bxe4
{[%clk 00:00:30]} {[%emt 00:00:10]} Bxe4 {[%clk 00:01:30]} 30. Re2 {[%clk
00:00:09]} {[%emt 00:00:23]} Qd8 {[%clk 00:01:16]} {[%emt 00:00:16]} 31. Rae1
{[%clk 00:00:10]} {[%emt 00:00:01]} Qd4+ {[%clk 00:01:17]} 32. Kh2 {[%clk
00:00:11]} bxc4 {[%clk 00:00:54]} {[%emt 00:00:26]} 33. bxc4 {[%clk 00:00:13]}
f5 {[%clk 00:00:33]} {[%emt 00:00:23]} 34. Qg5 {[%clk 00:00:14]} Kf7 {[%clk
00:00:29]} {[%emt 00:00:07]} 35. Nxe4 {[%clk 00:00:14]} {[%emt 00:00:02]} Rxe4
{[%clk 00:00:30]} 36. Rxe4 {[%clk 00:00:15]} Rxe4 {[%clk 00:00:31]} {[%emt
00:00:01]} 37. Rb1 {[%clk 00:00:13]} {[%emt 00:00:04]} Re7 {[%clk 00:00:17]}
{[%emt 00:00:15]} 38. Rb6 {[%clk 00:00:14]} Qg7 {[%clk 00:00:18]} 39. h5 {[%clk
00:00:14]} {[%emt 00:00:02]} gxh5 {[%clk 00:00:14]} {[%emt 00:00:07]} 40. Qxf5+
{[%emt 00:00:08]} 1-0

[Event "IV Pullman Blitz 2022"]
[Site "Riga, Latvia"]
[Date "2022.02.20"]
[Round "5.2"]
[White "Berzinsh, Roland"]
[Black "Gorozhankina, Julia"]
[Result "1/2-1/2"]
[TimeControl "180+2"]
[WhiteTitle "IM"]
[BlackTitle "WFM"]
[WhiteElo "2285"]
[BlackElo "2033"]

1. d4 {[%clk 00:03:01]} {[%emt 00:00:02]} Nf6 {[%clk 00:03:03]} {[%emt
00:00:01]} 2. Bf4 {[%clk 00:03:01]} g6 {[%clk 00:03:03]} {[%emt 00:00:03]} 3.
Nc3 {[%clk 00:03:02]} {[%emt 00:00:01]} d5 {[%clk 00:03:04]} {[%emt 00:00:01]}
4. Qd2 {[%clk 00:03:02]} {[%emt 00:00:02]} Bg7 {[%clk 00:03:01]} {[%emt
00:00:05]} 5. Bh6 {[%clk 00:03:02]} {[%emt 00:00:01]} O-O {[%clk 00:02:57]}
{[%emt 00:00:07]} 6. O-O-O {[%clk 00:02:51]} {[%emt 00:00:13]} c6 {[%clk
00:02:44]} {[%emt 00:00:15]} 7. f3 {[%clk 00:02:44]} {[%emt 00:00:09]} b5
{[%clk 00:02:29]} {[%emt 00:00:18]} 8. Bxg7 {[%clk 00:02:44]} {[%emt 00:00:01]}
Kxg7 {[%clk 00:02:29]} {[%emt 00:00:02]} 9. e4 {[%clk 00:02:44]} {[%emt
00:00:02]} dxe4 {[%clk 00:02:17]} {[%emt 00:00:14]} 10. fxe4 {[%clk 00:02:45]}
{[%emt 00:00:01]} b4 {[%clk 00:02:12]} {[%emt 00:00:08]} 11. e5 {[%clk
00:02:46]} bxc3 {[%clk 00:02:09]} {[%emt 00:00:06]} 12. exf6+ {[%clk 00:02:47]}
{[%emt 00:00:01]} exf6 {[%clk 00:02:10]} {[%emt 00:00:01]} 13. Qxc3 {[%clk
00:02:47]} Be6 {[%clk 00:02:05]} {[%emt 00:00:06]} 14. Bc4 {[%clk 00:02:41]}
{[%emt 00:00:08]} Qb6 {[%clk 00:01:31]} {[%emt 00:00:37]} 15. Ne2 {[%clk
00:02:31]} {[%emt 00:00:12]} Bxc4 {[%clk 00:01:02]} {[%emt 00:00:31]} 16. Qxc4
{[%clk 00:02:32]} Na6 {[%clk 00:01:03]} {[%emt 00:00:01]} 17. Nc3 {[%clk
00:02:23]} {[%emt 00:00:10]} Rab8 {[%clk 00:00:59]} {[%emt 00:00:07]} 18. Na4
{[%clk 00:02:24]} Qb5 {[%clk 00:00:54]} {[%emt 00:00:07]} 19. Qxb5 {[%clk
00:02:25]} {[%emt 00:00:01]} cxb5 {[%clk 00:00:54]} {[%emt 00:00:03]} 20. Nc5
{[%clk 00:02:18]} {[%emt 00:00:09]} Nxc5 {[%clk 00:00:34]} {[%emt 00:00:22]} 21.
dxc5 {[%clk 00:02:19]} b4 {[%clk 00:00:35]} {[%emt 00:00:01]} 22. Rd7 {[%clk
00:02:18]} {[%emt 00:00:02]} Rbc8 {[%clk 00:00:25]} {[%emt 00:00:12]} 23. Rxa7
{[%clk 00:02:16]} {[%emt 00:00:04]} Rxc5 {[%clk 00:00:27]} {[%emt 00:00:01]} 24.
Rd1 {[%clk 00:02:17]} {[%emt 00:00:01]} Rfc8 {[%clk 00:00:25]} {[%emt
00:00:04]} 25. Rd2 {[%clk 00:02:18]} f5 {[%clk 00:00:24]} {[%emt 00:00:03]} 26.
b3 {[%clk 00:02:13]} {[%emt 00:00:07]} R5c7 {[%clk 00:00:18]} {[%emt 00:00:08]}
27. Rd7 {[%clk 00:02:06]} {[%emt 00:00:09]} Rxc2+ {[%clk 00:00:17]} {[%emt
00:00:04]} 28. Kd1 {[%clk 00:02:07]} Rc1+ {[%clk 00:00:17]} {[%emt 00:00:03]}
29. Ke2 {[%clk 00:02:00]} {[%emt 00:00:09]} R1c2+ {[%clk 00:00:14]} {[%emt
00:00:05]} 30. Ke3 {[%clk 00:01:52]} {[%emt 00:00:10]} R8c3+ {[%clk 00:00:13]}
{[%emt 00:00:03]} 31. Kf4 {[%clk 00:01:12]} {[%emt 00:00:42]} Rf2+ {[%clk
00:00:14]} {[%emt 00:00:01]} 32. Ke5 {[%clk 00:01:13]} Re2+ {[%clk 00:00:15]}
{[%emt 00:00:02]} 33. Kd4 {[%clk 00:01:09]} {[%emt 00:00:05]} Rd2+ {[%clk
00:00:16]} {[%emt 00:00:02]} 34. Ke5 {[%clk 00:01:10]} Re2+ {[%clk 00:00:17]}
{[%emt 00:00:01]} 1/2-1/2

[Event "IV Pullman Blitz 2022"]
[Site "Riga, Latvia"]
[Date "2022.02.20"]
[Round "5.3"]
[White "Golubovskis, Maksims"]
[Black "Mustaps, Matiss"]
[Result "1/2-1/2"]
[TimeControl "180+2"]
[WhiteTitle "FM"]
[BlackTitle "FM"]
[WhiteElo "2066"]
[BlackElo "2261"]

1. e4 c5 2. Nf3 Nc6 3. d4 {[%clk 00:03:06]} cxd4 4. Nxd4 {[%clk 00:03:07]} g6
{[%clk 00:03:09]} 5. Nc3 {[%clk 00:03:08]} {[%emt 00:00:01]} Bg7 {[%clk
00:03:10]} 6. Be3 {[%clk 00:03:09]} Nf6 {[%clk 00:03:10]} {[%emt 00:00:02]} 7.
Bc4 {[%clk 00:03:10]} {[%emt 00:00:02]} O-O {[%clk 00:03:10]} {[%emt 00:00:02]}
8. Bb3 {[%clk 00:03:10]} {[%emt 00:00:02]} d6 {[%clk 00:03:12]} 9. h3 {[%clk
00:03:00]} {[%emt 00:00:11]} Bd7 {[%clk 00:03:03]} {[%emt 00:00:11]} 10. O-O
{[%clk 00:03:01]} Na5 {[%clk 00:03:02]} {[%emt 00:00:04]} 11. Qe2 {[%clk
00:02:43]} {[%emt 00:00:20]} Rc8 {[%clk 00:03:00]} {[%emt 00:00:04]} 12. Rad1
{[%clk 00:02:44]} {[%emt 00:00:01]} Rxc3 {[%clk 00:02:45]} {[%emt 00:00:17]} 13.
bxc3 {[%clk 00:02:44]} {[%emt 00:00:01]} Nxe4 {[%clk 00:02:47]} {[%emt
00:00:01]} 14. Bd2 {[%clk 00:02:24]} {[%emt 00:00:22]} Nxd2 {[%clk 00:02:44]}
{[%emt 00:00:04]} 15. Rxd2 {[%clk 00:02:25]} e6 {[%clk 00:02:40]} {[%emt
00:00:06]} 16. c4 {[%emt 00:00:09]} a6 {[%clk 00:02:25]} {[%emt 00:00:17]} 17.
Nf3 {[%clk 00:01:55]} {[%emt 00:00:25]} b5 {[%clk 00:01:20]} {[%emt 00:01:07]}
18. Rxd6 {[%clk 00:01:25]} {[%emt 00:00:32]} Qc7 {[%clk 00:01:12]} {[%emt
00:00:11]} 19. Rfd1 {[%clk 00:01:26]} Bc6 {[%clk 00:01:13]} 20. cxb5 {[%clk
00:01:14]} {[%emt 00:00:14]} Bxb5 {[%clk 00:01:14]} 21. Qd2 {[%clk 00:00:57]}
{[%emt 00:00:19]} Nc4 {[%clk 00:01:15]} {[%emt 00:00:01]} 22. Bxc4 {[%clk
00:00:58]} Qxc4 {[%clk 00:01:17]} 23. Nd4 {[%clk 00:00:35]} {[%emt 00:00:26]}
Ba4 {[%clk 00:00:41]} {[%emt 00:00:38]} 24. Qd3 {[%clk 00:00:23]} {[%emt
00:00:14]} Qb4 {[%clk 00:00:14]} {[%emt 00:00:29]} 25. Qxa6 {[%clk 00:00:12]}
{[%emt 00:00:13]} Bf6 {[%clk 00:00:04]} {[%emt 00:00:12]} 26. Qb6 {[%clk
00:00:08]} {[%emt 00:00:06]} Qc3 {[%clk 00:00:04]} {[%emt 00:00:01]} 27. Nf3
{[%clk 00:00:04]} {[%emt 00:00:06]} Qxc2 {[%emt 00:00:01]} 28. R6d2 {[%clk
00:00:05]} Qc4 {[%clk 00:00:06]} 29. Qe3 {[%clk 00:00:04]} {[%emt 00:00:03]}
Bc6 {[%clk 00:00:07]} {[%emt 00:00:01]} 30. Qe2 {[%clk 00:00:03]} {[%emt
00:00:03]} Qa4 {[%clk 00:00:07]} {[%emt 00:00:02]} 31. Qe3 {[%clk 00:00:04]}
{[%emt 00:00:02]} Qc4 {[%clk 00:00:08]} 32. Qe2 {[%emt 00:00:01]} Qa4 33. Qe3
Qc4 34. Qa3 {[%clk 00:00:07]} Ra8 {[%clk 00:00:12]} {[%emt 00:00:02]} 35. Qd6
{[%clk 00:00:08]} Bxf3 {[%clk 00:00:12]} {[%emt 00:00:02]} 36. gxf3 {[%clk
00:00:09]} Rxa2 {[%clk 00:00:12]} {[%emt 00:00:02]} 37. Rxa2 {[%clk 00:00:09]}
{[%emt 00:00:02]} Qxa2 {[%clk 00:00:14]} 38. Qd3 {[%clk 00:00:06]} {[%emt
00:00:05]} Qa4 {[%clk 00:00:11]} {[%emt 00:00:04]} 39. Kg2 {[%clk 00:00:04]}
{[%emt 00:00:04]} Qf4 {[%clk 00:00:12]} 40. Qe4 {[%clk 00:00:04]} {[%emt
00:00:02]} Qg5+ {[%clk 00:00:13]} 41. Qg4 {[%clk 00:00:05]} {[%emt 00:00:02]}
Qb5 {[%clk 00:00:13]} {[%emt 00:00:01]} 42. Rc1 {[%clk 00:00:03]} {[%emt
00:00:04]} Qd7 {[%clk 00:00:14]} {[%emt 00:00:01]} 43. Qe4 {[%clk 00:00:04]}
Kg7 {[%clk 00:00:14]} {[%emt 00:00:03]} 44. Qc6 {[%clk 00:00:05]} {[%emt
00:00:01]} 1/2-1/2

[Event "IV Pullman Blitz 2022"]
[Site "Riga, Latvia"]
[Date "2022.02.20"]
[Round "5.4"]
[White "Jazdanovs, Aleksandrs"]
[Black "Sveshnikov, Vladimir"]
[Result "1/2-1/2"]
[TimeControl "180+2"]
[BlackTitle "IM"]
[WhiteElo "2027"]
[BlackElo "2233"]

1. Nf3 {[%clk 00:03:04]} {[%emt 00:06:16]} d5 {[%clk 00:03:04]} {[%emt
00:00:01]} 2. c4 e6 {[%emt 00:00:01]} 3. e3 {[%emt 00:00:01]} Nf6 {[%emt
00:00:01]} 4. b3 {[%clk 00:03:06]} Bd6 {[%clk 00:03:07]} {[%emt 00:00:02]} 5.
Be2 {[%clk 00:03:07]} {[%emt 00:00:01]} O-O {[%clk 00:03:07]} {[%emt 00:00:01]}
6. O-O {[%clk 00:03:07]} {[%emt 00:00:01]} b6 {[%clk 00:03:07]} {[%emt
00:00:02]} 7. Ba3 {[%clk 00:03:07]} {[%emt 00:00:02]} Bxa3 {[%clk 00:03:04]}
{[%emt 00:00:06]} 8. Nxa3 {[%clk 00:03:08]} Bb7 {[%clk 00:03:05]} {[%emt
00:00:01]} 9. d3 {[%clk 00:02:58]} {[%emt 00:00:12]} c5 {[%clk 00:03:04]}
{[%emt 00:00:02]} 10. Qc2 {[%clk 00:02:54]} {[%emt 00:00:06]} Nc6 {[%clk
00:03:05]} {[%emt 00:00:01]} 11. Qb2 {[%clk 00:02:55]} {[%emt 00:00:01]} Qe7
{[%clk 00:03:01]} {[%emt 00:00:06]} 12. Ne5 {[%clk 00:02:41]} {[%emt 00:00:16]}
Nxe5 {[%clk 00:02:53]} {[%emt 00:00:10]} 13. Qxe5 {[%clk 00:02:42]} dxc4 {[%clk
00:02:47]} {[%emt 00:00:08]} 14. dxc4 {[%clk 00:02:37]} {[%emt 00:00:08]} Rfd8
{[%clk 00:02:31]} {[%emt 00:00:18]} 15. Rfd1 {[%clk 00:02:37]} {[%emt
00:00:02]} Bc6 {[%clk 00:02:24]} {[%emt 00:00:09]} 16. Nc2 {[%clk 00:02:20]}
{[%emt 00:00:19]} h6 {[%clk 00:02:20]} {[%emt 00:00:06]} 17. Ne1 {[%clk
00:02:21]} {[%emt 00:00:01]} a5 {[%clk 00:02:11]} {[%emt 00:00:11]} 18. a4
{[%clk 00:02:15]} {[%emt 00:00:08]} Qb7 {[%clk 00:01:51]} {[%emt 00:00:21]} 19.
Bf3 {[%clk 00:02:13]} {[%emt 00:00:04]} Bxf3 {[%clk 00:01:39]} {[%emt
00:00:14]} 20. Nxf3 {[%clk 00:02:14]} Ne4 {[%clk 00:01:37]} {[%emt 00:00:04]}
21. h4 {[%clk 00:01:52]} {[%emt 00:00:25]} Qc6 {[%clk 00:01:28]} {[%emt
00:00:10]} 22. Qb2 {[%clk 00:01:25]} {[%emt 00:00:29]} f6 {[%clk 00:01:26]}
{[%emt 00:00:05]} 23. Qc2 {[%clk 00:01:15]} {[%emt 00:00:12]} e5 {[%clk
00:01:11]} {[%emt 00:00:17]} 24. Rxd8+ {[%clk 00:01:16]} {[%emt 00:00:01]} Rxd8
{[%clk 00:01:12]} {[%emt 00:00:01]} 25. Rd1 {[%clk 00:01:18]} Rxd1+ {[%clk
00:01:08]} {[%emt 00:00:06]} 26. Qxd1 {[%clk 00:01:19]} Qd6 {[%clk 00:01:03]}
{[%emt 00:00:07]} 27. Qxd6 {[%clk 00:01:17]} {[%emt 00:00:06]} Nxd6 {[%clk
00:01:03]} 28. Nd2 {[%clk 00:01:13]} {[%emt 00:00:06]} h5 {[%clk 00:00:59]}
{[%emt 00:00:06]} 29. Kf1 {[%clk 00:01:02]} {[%emt 00:00:13]} Kf7 {[%clk
00:00:58]} {[%emt 00:00:02]} 30. Ke2 {[%clk 00:01:03]} Nf5 {[%clk 00:00:43]}
{[%emt 00:00:17]} 31. g3 {[%clk 00:00:59]} {[%emt 00:00:06]} g5 {[%clk
00:00:44]} {[%emt 00:00:01]} 32. hxg5 {[%emt 00:00:43]} fxg5 33. Ne4 {[%clk
00:00:19]} {[%emt 00:00:01]} Kg6 {[%clk 00:00:44]} {[%emt 00:00:04]} 34. Kf3
{[%clk 00:00:19]} {[%emt 00:00:02]} g4+ {[%clk 00:00:35]} {[%emt 00:00:10]} 35.
Ke2 {[%emt 00:00:03]} Kf7 {[%clk 00:00:32]} {[%emt 00:00:04]} 36. Nc3 {[%emt
00:00:16]} 1/2-1/2